{"text_format":"1","workbook":"xlsx","n_sheets":2,"sheets":["Palkanlaskennan tiedot","laskelma_malli"],"not_rendered":{"charts":0,"images":0,"macros":1,"external_links":0,"defined_names":7,"comments":0,"pivot_tables":0},"unopened":[],"bounds":{"document_bytes":16777216,"sheet_cells":100000,"rows_first":2000,"rows_last":500,"rows_between":2000,"halvings":0,"cell_chars":16384,"cell_head_chars":4096},"cells_cut":0,"cells_raw":0,"read":"whole","date_system":"1900"}

{"sheet":"Palkanlaskennan tiedot","index":0,"n_rows":13,"n_cols":24,"rows_kept":13,"cut":false,"hidden":false,"merged":[]}
[null,"PALKKALASKURI",null,null,null,null,null,null,null,null,"JAKSO LOPPUU:","2013-04-08",null,"YRITYKSEN NIMI:",null,"ADVENTURE WORKS"]
[]
[null,"Tunnus","Työntekijän nimi","Normaalit työtunnit","Lomatunnit","Sairas-\npoissaolot","Ylityötunnit","Ylityökorvaus","Brutto-\npalkka","Verot ja vähennykset","Muut\nvähennykset","Nettopalkka"," ","Tuntipalkka","Vero-\nstatus","Valtion\nkorvaus","Kunnallis-\nvero","Tulovero","Sosiaaliturva-\nmaksu","Kirkollisvero","Pidätetyt verot yhteensä","Vakuutusvähennys","Muu säänn. vähennys","Säänn. vähennykset"]
[null,1001,"Esko Sario",50,5,1,null,null,{"$f":"SUM(Työntekijät[[#This Row],[Normaalit työtunnit]:[Sairas-\npoissaolot]])*Työntekijät[[#This Row],[Tuntipalkka]]+Työntekijät[[#This Row],[Ylityötunnit]]*Työntekijät[[#This Row],[Ylityökorvaus]]","v":560},{"$f":"Työntekijät[[#This Row],[Brutto-\npalkka]]*Työntekijät[[#This Row],[Pidätetyt verot yhteensä]] + Työntekijät[[#This Row],[Säänn. vähennykset]]","v":273.08000000000004},20,{"$f":"Työntekijät[[#This Row],[Brutto-\npalkka]]-Työntekijät[[#This Row],[Verot ja vähennykset]]-Työntekijät[[#This Row],[Muut\nvähennykset]]","v":266.91999999999996},null,10,1,4,2.3E-2,0.28000000000000003,6.3E-2,1.4500000000000001E-2,{"$f":"SUM(Työntekijät[[#This Row],[Kunnallis-\nvero]:[Kirkollisvero]])","v":0.38050000000000006},20,40,{"$f":"SUM(Työntekijät[[#This Row],[Vakuutusvähennys]:[Muu säänn. vähennys]])","v":60}]
[null,1002,"Teemu Sallinen",40,null,null,null,null,{"$f":"SUM(Työntekijät[[#This Row],[Normaalit työtunnit]:[Sairas-\npoissaolot]])*Työntekijät[[#This Row],[Tuntipalkka]]+Työntekijät[[#This Row],[Ylityötunnit]]*Työntekijät[[#This Row],[Ylityökorvaus]]","v":320},{"$f":"Työntekijät[[#This Row],[Brutto-\npalkka]]*Työntekijät[[#This Row],[Pidätetyt verot yhteensä]] + Työntekijät[[#This Row],[Säänn. vähennykset]]","v":131.76000000000002},null,{"$f":"Työntekijät[[#This Row],[Brutto-\npalkka]]-Työntekijät[[#This Row],[Verot ja vähennykset]]-Työntekijät[[#This Row],[Muut\nvähennykset]]","v":188.23999999999998},null,8,1,1,2.3E-2,0.28000000000000003,6.3E-2,1.4500000000000001E-2,{"$f":"SUM(Työntekijät[[#This Row],[Kunnallis-\nvero]:[Kirkollisvero]])","v":0.38050000000000006},0,10,{"$f":"SUM(Työntekijät[[#This Row],[Vakuutusvähennys]:[Muu säänn. vähennys]])","v":10}]
[null,1003,"Tanja Varvikko",35,3,null,null,null,{"$f":"SUM(Työntekijät[[#This Row],[Normaalit työtunnit]:[Sairas-\npoissaolot]])*Työntekijät[[#This Row],[Tuntipalkka]]+Työntekijät[[#This Row],[Ylityötunnit]]*Työntekijät[[#This Row],[Ylityökorvaus]]","v":532},{"$f":"Työntekijät[[#This Row],[Brutto-\npalkka]]*Työntekijät[[#This Row],[Pidätetyt verot yhteensä]] + Työntekijät[[#This Row],[Säänn. vähennykset]]","v":240.42600000000004},null,{"$f":"Työntekijät[[#This Row],[Brutto-\npalkka]]-Työntekijät[[#This Row],[Verot ja vähennykset]]-Työntekijät[[#This Row],[Muut\nvähennykset]]","v":291.57399999999996},null,14,1,3,2.3E-2,0.28000000000000003,6.3E-2,1.4500000000000001E-2,{"$f":"SUM(Työntekijät[[#This Row],[Kunnallis-\nvero]:[Kirkollisvero]])","v":0.38050000000000006},18,20,{"$f":"SUM(Työntekijät[[#This Row],[Vakuutusvähennys]:[Muu säänn. vähennys]])","v":38}]
[null,1008,"Ari Suominen",50,5,1,null,null,{"$f":"SUM(Työntekijät[[#This Row],[Normaalit työtunnit]:[Sairas-\npoissaolot]])*Työntekijät[[#This Row],[Tuntipalkka]]+Työntekijät[[#This Row],[Ylityötunnit]]*Työntekijät[[#This Row],[Ylityökorvaus]]","v":1120},{"$f":"Työntekijät[[#This Row],[Brutto-\npalkka]]*Työntekijät[[#This Row],[Pidätetyt verot yhteensä]] + Työntekijät[[#This Row],[Säänn. vähennykset]]","v":441.16000000000008},null,{"$f":"Työntekijät[[#This Row],[Brutto-\npalkka]]-Työntekijät[[#This Row],[Verot ja vähennykset]]-Työntekijät[[#This Row],[Muut\nvähennykset]]","v":678.83999999999992},null,20,1,0,2.3E-2,0.28000000000000003,6.3E-2,1.4500000000000001E-2,{"$f":"SUM(Työntekijät[[#This Row],[Kunnallis-\nvero]:[Kirkollisvero]])","v":0.38050000000000006},15,null,{"$f":"SUM(Työntekijät[[#This Row],[Vakuutusvähennys]:[Muu säänn. vähennys]])","v":15}]
[null,1011,"Heidi Steen",40,null,null,2,15,{"$f":"SUM(Työntekijät[[#This Row],[Normaalit työtunnit]:[Sairas-\npoissaolot]])*Työntekijät[[#This Row],[Tuntipalkka]]+Työntekijät[[#This Row],[Ylityötunnit]]*Työntekijät[[#This Row],[Ylityökorvaus]]","v":430},{"$f":"Työntekijät[[#This Row],[Brutto-\npalkka]]*Työntekijät[[#This Row],[Pidätetyt verot yhteensä]] + Työntekijät[[#This Row],[Säänn. vähennykset]]","v":223.61500000000004},null,{"$f":"Työntekijät[[#This Row],[Brutto-\npalkka]]-Työntekijät[[#This Row],[Verot ja vähennykset]]-Työntekijät[[#This Row],[Muut\nvähennykset]]","v":206.38499999999996},null,10,1,0,2.3E-2,0.28000000000000003,6.3E-2,1.4500000000000001E-2,{"$f":"SUM(Työntekijät[[#This Row],[Kunnallis-\nvero]:[Kirkollisvero]])","v":0.38050000000000006},20,40,{"$f":"SUM(Työntekijät[[#This Row],[Vakuutusvähennys]:[Muu säänn. vähennys]])","v":60}]
[null,1012,"Juha-Pekka Posti",40,5,1,null,null,{"$f":"SUM(Työntekijät[[#This Row],[Normaalit työtunnit]:[Sairas-\npoissaolot]])*Työntekijät[[#This Row],[Tuntipalkka]]+Työntekijät[[#This Row],[Ylityötunnit]]*Työntekijät[[#This Row],[Ylityökorvaus]]","v":552},{"$f":"Työntekijät[[#This Row],[Brutto-\npalkka]]*Työntekijät[[#This Row],[Pidätetyt verot yhteensä]] + Työntekijät[[#This Row],[Säänn. vähennykset]]","v":270.03600000000006},null,{"$f":"Työntekijät[[#This Row],[Brutto-\npalkka]]-Työntekijät[[#This Row],[Verot ja vähennykset]]-Työntekijät[[#This Row],[Muut\nvähennykset]]","v":281.96399999999994},null,12,1,4,2.3E-2,0.28000000000000003,6.3E-2,1.4500000000000001E-2,{"$f":"SUM(Työntekijät[[#This Row],[Kunnallis-\nvero]:[Kirkollisvero]])","v":0.38050000000000006},20,40,{"$f":"SUM(Työntekijät[[#This Row],[Vakuutusvähennys]:[Muu säänn. vähennys]])","v":60}]
[null,1025,"Tiina Lassila",36,null,2,1,18,{"$f":"SUM(Työntekijät[[#This Row],[Normaalit työtunnit]:[Sairas-\npoissaolot]])*Työntekijät[[#This Row],[Tuntipalkka]]+Työntekijät[[#This Row],[Ylityötunnit]]*Työntekijät[[#This Row],[Ylityökorvaus]]","v":474},{"$f":"Työntekijät[[#This Row],[Brutto-\npalkka]]*Työntekijät[[#This Row],[Pidätetyt verot yhteensä]] + Työntekijät[[#This Row],[Säänn. vähennykset]]","v":225.35700000000003},25,{"$f":"Työntekijät[[#This Row],[Brutto-\npalkka]]-Työntekijät[[#This Row],[Verot ja vähennykset]]-Työntekijät[[#This Row],[Muut\nvähennykset]]","v":223.64299999999997},null,12,1,2,2.3E-2,0.28000000000000003,6.3E-2,1.4500000000000001E-2,{"$f":"SUM(Työntekijät[[#This Row],[Kunnallis-\nvero]:[Kirkollisvero]])","v":0.38050000000000006},25,20,{"$f":"SUM(Työntekijät[[#This Row],[Vakuutusvähennys]:[Muu säänn. vähennys]])","v":45}]
[null,1032,"Matti Virtanen",40,5,1,null,null,{"$f":"SUM(Työntekijät[[#This Row],[Normaalit työtunnit]:[Sairas-\npoissaolot]])*Työntekijät[[#This Row],[Tuntipalkka]]+Työntekijät[[#This Row],[Ylityötunnit]]*Työntekijät[[#This Row],[Ylityökorvaus]]","v":460},{"$f":"Työntekijät[[#This Row],[Brutto-\npalkka]]*Työntekijät[[#This Row],[Pidätetyt verot yhteensä]] + Työntekijät[[#This Row],[Säänn. vähennykset]]","v":175.03000000000003},50,{"$f":"Työntekijät[[#This Row],[Brutto-\npalkka]]-Työntekijät[[#This Row],[Verot ja vähennykset]]-Työntekijät[[#This Row],[Muut\nvähennykset]]","v":234.96999999999997},null,10,1,3,2.3E-2,0.28000000000000003,6.3E-2,1.4500000000000001E-2,{"$f":"SUM(Työntekijät[[#This Row],[Kunnallis-\nvero]:[Kirkollisvero]])","v":0.38050000000000006},null,null,{"$f":"SUM(Työntekijät[[#This Row],[Vakuutusvähennys]:[Muu säänn. vähennys]])","v":0}]
[null,1049,"Anna Korhonen",40,1,null,null,null,{"$f":"SUM(Työntekijät[[#This Row],[Normaalit työtunnit]:[Sairas-\npoissaolot]])*Työntekijät[[#This Row],[Tuntipalkka]]+Työntekijät[[#This Row],[Ylityötunnit]]*Työntekijät[[#This Row],[Ylityökorvaus]]","v":615},{"$f":"Työntekijät[[#This Row],[Brutto-\npalkka]]*Työntekijät[[#This Row],[Pidätetyt verot yhteensä]] + Työntekijät[[#This Row],[Säänn. vähennykset]]","v":259.00750000000005},23,{"$f":"Työntekijät[[#This Row],[Brutto-\npalkka]]-Työntekijät[[#This Row],[Verot ja vähennykset]]-Työntekijät[[#This Row],[Muut\nvähennykset]]","v":332.99249999999995},null,15,1,2,2.3E-2,0.28000000000000003,6.3E-2,1.4500000000000001E-2,{"$f":"SUM(Työntekijät[[#This Row],[Kunnallis-\nvero]:[Kirkollisvero]])","v":0.38050000000000006},25,null,{"$f":"SUM(Työntekijät[[#This Row],[Vakuutusvähennys]:[Muu säänn. vähennys]])","v":25}]
[null,"Summat",{"$f":"SUBTOTAL(103,Työntekijät[Työntekijän nimi])","v":9},{"$f":"SUBTOTAL(109,Työntekijät[Normaalit työtunnit])","v":371},{"$f":"SUBTOTAL(109,Työntekijät[Lomatunnit])","v":24},{"$f":"SUBTOTAL(109,Työntekijät[Sairas-\npoissaolot])","v":6},{"$f":"SUBTOTAL(109,Työntekijät[Ylityötunnit])","v":3},null,{"$f":"SUBTOTAL(109,Työntekijät[Brutto-\npalkka])","v":5063},{"$f":"SUBTOTAL(109,Työntekijät[Verot ja vähennykset])","v":2239.4715000000001},{"$f":"SUBTOTAL(109,Työntekijät[Muut\nvähennykset])","v":118},{"$f":"SUBTOTAL(109,Työntekijät[Nettopalkka])","v":2705.5284999999994},null,null,null,null,null,null,null,null,null,{"$f":"SUBTOTAL(109,Työntekijät[Vakuutusvähennys])","v":143},{"$f":"SUBTOTAL(109,Työntekijät[Muu säänn. vähennys])","v":170},{"$f":"SUBTOTAL(109,Työntekijät[Säänn. vähennykset])","v":313}]

{"sheet":"laskelma_malli","index":1,"n_rows":47,"n_cols":13,"rows_kept":47,"cut":false,"hidden":true,"merged":[[2,7,2,8],[14,7,14,8],[26,7,26,8],[38,7,38,8],[38,11,38,12],[26,11,26,12],[14,11,14,12],[2,11,2,12],[2,3,2,4],[14,3,14,4],[26,3,26,4],[38,3,38,4],[44,2,44,3],[8,2,8,3],[9,2,9,3],[45,2,45,3],[32,2,32,3],[33,2,33,3],[20,2,20,3],[21,2,21,3]]}
[]
[null,null,{"$f":"CompanyName","v":"ADVENTURE WORKS"}]
[null,null,"JAKSO",{"$f":"PeriodEnding","v":"2013-04-08"},null,null,"NIMI",{"$f":"IFERROR(INDEX(Työntekijät[Työntekijän nimi],Stub),\"\")","v":"Esko Sario"},null,null,"TYÖNTEKIJÄTUNNUS",{"$f":"IFERROR(INDEX(Työntekijät[Tunnus],Stub),\"\")","v":1001}]
[null,null,"Verostatus",null,{"$f":"IFERROR(INDEX(Työntekijät[Vero-\nstatus],Stub),\"\")","v":1},null,"Valtion korvaus (W-4-lomake)",null,{"$f":"IFERROR(INDEX(Työntekijät[Valtion\nkorvaus],Stub),\"\")","v":4},null,"Tehdyt tunnit",null,{"$f":"IFERROR(INDEX(Työntekijät[Normaalit työtunnit],Stub),\"\")","v":50}]
[null,null,"Tuntihinta",null,{"$f":"IFERROR(INDEX(Työntekijät[Tuntipalkka],Stub),\"\")","v":10},null,"Ylityökorvaus",null,{"$f":"IFERROR(INDEX(Työntekijät[Ylityökorvaus],Stub),\"\")","v":0},null,"Sairaspoissaolot",null,{"$f":"IFERROR(INDEX(Työntekijät[Sairas-\npoissaolot],Stub),\"\")","v":1}]
[null,null,"Sosiaaliturvavero",null,{"$f":"IFERROR(INDEX(Työntekijät[Sosiaaliturva-\nmaksu],Stub)  *  INDEX(Työntekijät[Brutto-\npalkka],Stub),\"\")","v":35.28},null,"Tulovero ",null,{"$f":"IFERROR(INDEX(Työntekijät[Tulovero],Stub)  *  INDEX(Työntekijät[Brutto-\npalkka],Stub),\"\")","v":156.80000000000001},null,"Lomatunnit",null,{"$f":"IFERROR(INDEX(Työntekijät[Lomatunnit],Stub),\"\")","v":5}]
[null,null,"Kirkollisvero ",null,{"$f":"IFERROR(INDEX(Työntekijät[Kirkollisvero],Stub)  *  INDEX(Työntekijät[Brutto-\npalkka],Stub),\"\")","v":8.120000000000001},null,"Kunnallisvero ",null,{"$f":"IFERROR(INDEX(Työntekijät[Kunnallis-\nvero],Stub)  *  INDEX(Työntekijät[Brutto-\npalkka],Stub),\"\")","v":12.879999999999999},null,"Ylityötunnit",null,{"$f":"IFERROR(INDEX(Työntekijät[Ylityötunnit],Stub),\"\")","v":0}]
[null,null,"Vakuutusvähennys",null,{"$f":"IFERROR(INDEX(Työntekijät[Vakuutusvähennys],Stub),\"\")","v":20},null,"Muu säännöllinen vähennys",null,{"$f":"IFERROR(INDEX(Työntekijät[Muu säänn. vähennys],Stub),\"\")","v":40},null,"Bruttopalkka",null,{"$f":"IFERROR(INDEX(Työntekijät[Brutto-\npalkka],Stub),\"\")","v":560}]
[null,null,"Verot yhteensä ja",null,{"$f":"IFERROR(INDEX(Työntekijät[Verot ja vähennykset],Stub),\"\")","v":273.08000000000004},null,"Muut vähennykset",null,{"$f":"IFERROR(INDEX(Työntekijät[Muut\nvähennykset],Stub),\"\")","v":20},null,"Verot ja vähennykset yhteensä ",null,{"$f":"IFERROR(INDEX(Työntekijät[Verot ja vähennykset],Stub)  +  INDEX(Työntekijät[Muut\nvähennykset],Stub),\"\")","v":293.08000000000004}]
[null,null,"normaalit vähennykset  "]
[null,null,null,null,null,null,null,null,null,null,"Nettopalkka",null,{"$f":"IFERROR(INDEX(Työntekijät[Nettopalkka],Stub),\"\")","v":266.91999999999996}]
[]
[]
[null,null,{"$f":"CompanyName","v":"ADVENTURE WORKS"}]
[null,null,"JAKSO",{"$f":"PeriodEnding","v":"2013-04-08"},null,null,"NIMI",{"$f":"IFERROR(INDEX(Työntekijät[Työntekijän nimi],Stub),\"\")","v":"Teemu Sallinen"},null,null,"TYÖNTEKIJÄTUNNUS",{"$f":"IFERROR(INDEX(Työntekijät[Tunnus],Stub),\"\")","v":1002}]
[null,null,"Verostatus",null,{"$f":"IFERROR(INDEX(Työntekijät[Vero-\nstatus],Stub),\"\")","v":1},null,"Valtion korvaus (W-4-lomake)",null,{"$f":"IFERROR(INDEX(Työntekijät[Valtion\nkorvaus],Stub),\"\")","v":1},null,"Tehdyt tunnit",null,{"$f":"IFERROR(INDEX(Työntekijät[Normaalit työtunnit],Stub),\"\")","v":40}]
[null,null,"Tuntihinta",null,{"$f":"IFERROR(INDEX(Työntekijät[Tuntipalkka],Stub),\"\")","v":8},null,"Ylityökorvaus",null,{"$f":"IFERROR(INDEX(Työntekijät[Ylityökorvaus],Stub),\"\")","v":0},null,"Sairaspoissaolot",null,{"$f":"IFERROR(INDEX(Työntekijät[Sairas-\npoissaolot],Stub),\"\")","v":0}]
[null,null,"Sosiaaliturvavero",null,{"$f":"IFERROR(INDEX(Työntekijät[Sosiaaliturva-\nmaksu],Stub)  *  INDEX(Työntekijät[Brutto-\npalkka],Stub),\"\")","v":20.16},null,"Tulovero ",null,{"$f":"IFERROR(INDEX(Työntekijät[Tulovero],Stub)  *  INDEX(Työntekijät[Brutto-\npalkka],Stub),\"\")","v":89.600000000000009},null,"Lomatunnit",null,{"$f":"IFERROR(INDEX(Työntekijät[Lomatunnit],Stub),\"\")","v":0}]
[null,null,"Kirkollisvero ",null,{"$f":"IFERROR(INDEX(Työntekijät[Kirkollisvero],Stub)  *  INDEX(Työntekijät[Brutto-\npalkka],Stub),\"\")","v":4.6400000000000006},null,"Kunnallisvero ",null,{"$f":"IFERROR(INDEX(Työntekijät[Kunnallis-\nvero],Stub)  *  INDEX(Työntekijät[Brutto-\npalkka],Stub),\"\")","v":7.3599999999999994},null,"Ylityötunnit",null,{"$f":"IFERROR(INDEX(Työntekijät[Ylityötunnit],Stub),\"\")","v":0}]
[null,null,"Vakuutusvähennys",null,{"$f":"IFERROR(INDEX(Työntekijät[Vakuutusvähennys],Stub),\"\")","v":0},null,"Muu säännöllinen vähennys",null,{"$f":"IFERROR(INDEX(Työntekijät[Muu säänn. vähennys],Stub),\"\")","v":10},null,"Bruttopalkka",null,{"$f":"IFERROR(INDEX(Työntekijät[Brutto-\npalkka],Stub),\"\")","v":320}]
[null,null,"Verot yhteensä ja",null,{"$f":"IFERROR(INDEX(Työntekijät[Verot ja vähennykset],Stub),\"\")","v":131.76000000000002},null,"Muut vähennykset",null,{"$f":"IFERROR(INDEX(Työntekijät[Muut\nvähennykset],Stub),\"\")","v":0},null,"Verot ja vähennykset yhteensä ",null,{"$f":"IFERROR(INDEX(Työntekijät[Verot ja vähennykset],Stub)  +  INDEX(Työntekijät[Muut\nvähennykset],Stub),\"\")","v":131.76000000000002}]
[null,null,"normaalit vähennykset  "]
[null,null,null,null,null,null,null,null,null,null,"Nettopalkka",null,{"$f":"IFERROR(INDEX(Työntekijät[Nettopalkka],Stub),\"\")","v":188.23999999999998}]
[]
[]
[null,null,{"$f":"CompanyName","v":"ADVENTURE WORKS"}]
[null,null,"JAKSO",{"$f":"PeriodEnding","v":"2013-04-08"},null,null,"NIMI",{"$f":"IFERROR(INDEX(Työntekijät[Työntekijän nimi],Stub),\"\")","v":"Tanja Varvikko"},null,null,"TYÖNTEKIJÄTUNNUS",{"$f":"IFERROR(INDEX(Työntekijät[Tunnus],Stub),\"\")","v":1003}]
[null,null,"Verostatus",null,{"$f":"IFERROR(INDEX(Työntekijät[Vero-\nstatus],Stub),\"\")","v":1},null,"Valtion korvaus (W-4-lomake)",null,{"$f":"IFERROR(INDEX(Työntekijät[Valtion\nkorvaus],Stub),\"\")","v":3},null,"Tehdyt tunnit",null,{"$f":"IFERROR(INDEX(Työntekijät[Normaalit työtunnit],Stub),\"\")","v":35}]
[null,null,"Tuntihinta",null,{"$f":"IFERROR(INDEX(Työntekijät[Tuntipalkka],Stub),\"\")","v":14},null,"Ylityökorvaus",null,{"$f":"IFERROR(INDEX(Työntekijät[Ylityökorvaus],Stub),\"\")","v":0},null,"Sairaspoissaolot",null,{"$f":"IFERROR(INDEX(Työntekijät[Sairas-\npoissaolot],Stub),\"\")","v":0}]
[null,null,"Sosiaaliturvavero",null,{"$f":"IFERROR(INDEX(Työntekijät[Sosiaaliturva-\nmaksu],Stub)  *  INDEX(Työntekijät[Brutto-\npalkka],Stub),\"\")","v":33.515999999999998},null,"Tulovero ",null,{"$f":"IFERROR(INDEX(Työntekijät[Tulovero],Stub)  *  INDEX(Työntekijät[Brutto-\npalkka],Stub),\"\")","v":148.96},null,"Lomatunnit",null,{"$f":"IFERROR(INDEX(Työntekijät[Lomatunnit],Stub),\"\")","v":3}]
[null,null,"Kirkollisvero ",null,{"$f":"IFERROR(INDEX(Työntekijät[Kirkollisvero],Stub)  *  INDEX(Työntekijät[Brutto-\npalkka],Stub),\"\")","v":7.7140000000000004},null,"Kunnallisvero ",null,{"$f":"IFERROR(INDEX(Työntekijät[Kunnallis-\nvero],Stub)  *  INDEX(Työntekijät[Brutto-\npalkka],Stub),\"\")","v":12.236000000000001},null,"Ylityötunnit",null,{"$f":"IFERROR(INDEX(Työntekijät[Ylityötunnit],Stub),\"\")","v":0}]
[null,null,"Vakuutusvähennys",null,{"$f":"IFERROR(INDEX(Työntekijät[Vakuutusvähennys],Stub),\"\")","v":18},null,"Muu säännöllinen vähennys",null,{"$f":"IFERROR(INDEX(Työntekijät[Muu säänn. vähennys],Stub),\"\")","v":20},null,"Bruttopalkka",null,{"$f":"IFERROR(INDEX(Työntekijät[Brutto-\npalkka],Stub),\"\")","v":532}]
[null,null,"Verot yhteensä ja",null,{"$f":"IFERROR(INDEX(Työntekijät[Verot ja vähennykset],Stub),\"\")","v":240.42600000000004},null,"Muut vähennykset",null,{"$f":"IFERROR(INDEX(Työntekijät[Muut\nvähennykset],Stub),\"\")","v":0},null,"Verot ja vähennykset yhteensä ",null,{"$f":"IFERROR(INDEX(Työntekijät[Verot ja vähennykset],Stub)  +  INDEX(Työntekijät[Muut\nvähennykset],Stub),\"\")","v":240.42600000000004}]
[null,null,"normaalit vähennykset  "]
[null,null,null,null,null,null,null,null,null,null,"Nettopalkka",null,{"$f":"IFERROR(INDEX(Työntekijät[Nettopalkka],Stub),\"\")","v":291.57399999999996}]
[]
[]
[null,null,{"$f":"CompanyName","v":"ADVENTURE WORKS"}]
[null,null,"JAKSO",{"$f":"PeriodEnding","v":"2013-04-08"},null,null,"NIMI",{"$f":"IFERROR(INDEX(Työntekijät[Työntekijän nimi],Stub),\"\")","v":"Ari Suominen"},null,null,"TYÖNTEKIJÄTUNNUS",{"$f":"IFERROR(INDEX(Työntekijät[Tunnus],Stub),\"\")","v":1008}]
[null,null,"Verostatus",null,{"$f":"IFERROR(INDEX(Työntekijät[Vero-\nstatus],Stub),\"\")","v":1},null,"Valtion korvaus (W-4-lomake)",null,{"$f":"IFERROR(INDEX(Työntekijät[Valtion\nkorvaus],Stub),\"\")","v":0},null,"Tehdyt tunnit",null,{"$f":"IFERROR(INDEX(Työntekijät[Normaalit työtunnit],Stub),\"\")","v":50}]
[null,null,"Tuntihinta",null,{"$f":"IFERROR(INDEX(Työntekijät[Tuntipalkka],Stub),\"\")","v":20},null,"Ylityökorvaus",null,{"$f":"IFERROR(INDEX(Työntekijät[Ylityökorvaus],Stub),\"\")","v":0},null,"Sairaspoissaolot",null,{"$f":"IFERROR(INDEX(Työntekijät[Sairas-\npoissaolot],Stub),\"\")","v":1}]
[null,null,"Sosiaaliturvavero",null,{"$f":"IFERROR(INDEX(Työntekijät[Sosiaaliturva-\nmaksu],Stub)  *  INDEX(Työntekijät[Brutto-\npalkka],Stub),\"\")","v":70.56},null,"Tulovero ",null,{"$f":"IFERROR(INDEX(Työntekijät[Tulovero],Stub)  *  INDEX(Työntekijät[Brutto-\npalkka],Stub),\"\")","v":313.60000000000002},null,"Lomatunnit",null,{"$f":"IFERROR(INDEX(Työntekijät[Lomatunnit],Stub),\"\")","v":5}]
[null,null,"Kirkollisvero ",null,{"$f":"IFERROR(INDEX(Työntekijät[Kirkollisvero],Stub)  *  INDEX(Työntekijät[Brutto-\npalkka],Stub),\"\")","v":16.240000000000002},null,"Kunnallisvero ",null,{"$f":"IFERROR(INDEX(Työntekijät[Kunnallis-\nvero],Stub)  *  INDEX(Työntekijät[Brutto-\npalkka],Stub),\"\")","v":25.759999999999998},null,"Ylityötunnit",null,{"$f":"IFERROR(INDEX(Työntekijät[Ylityötunnit],Stub),\"\")","v":0}]
[null,null,"Vakuutusvähennys",null,{"$f":"IFERROR(INDEX(Työntekijät[Vakuutusvähennys],Stub),\"\")","v":15},null,"Muu säännöllinen vähennys",null,{"$f":"IFERROR(INDEX(Työntekijät[Muu säänn. vähennys],Stub),\"\")","v":0},null,"Bruttopalkka",null,{"$f":"IFERROR(INDEX(Työntekijät[Brutto-\npalkka],Stub),\"\")","v":1120}]
[null,null,"Verot yhteensä ja",null,{"$f":"IFERROR(INDEX(Työntekijät[Verot ja vähennykset],Stub),\"\")","v":441.16000000000008},null,"Muut vähennykset",null,{"$f":"IFERROR(INDEX(Työntekijät[Muut\nvähennykset],Stub),\"\")","v":0},null,"Verot ja vähennykset yhteensä ",null,{"$f":"IFERROR(INDEX(Työntekijät[Verot ja vähennykset],Stub)  +  INDEX(Työntekijät[Muut\nvähennykset],Stub),\"\")","v":441.16000000000008}]
[null,null,"normaalit vähennykset  "]
[null,null,null,null,null,null,null,null,null,null,"Nettopalkka",null,{"$f":"IFERROR(INDEX(Työntekijät[Nettopalkka],Stub),\"\")","v":678.83999999999992}]